bitfinex/quotes_BTCUSD_20260103
["timestamp","ask_amount","ask_price","bid_price","bid_amount"]
[1767474354854,0.01895947,90320.0,90319.0,0.05535933]
[1767474355278,0.01895947,90320.0,90317.0,0.06643212]
[1767474356397,0.01810947,90320.0,90317.0,0.06643212]
[1767474356606,0.01810947,90320.0,90318.0,0.05535934]
[1767474357216,0.0245239,90327.0,90325.0,0.05535564]
[1767474357217,0.01345302,90327.0,90325.0,0.05535564]
[1767474357416,0.01345302,90327.0,90325.0,0.05435664]
[1767474357991,0.0001494,90331.0,90325.0,0.05435664]
[1767474358215,0.0001494,90331.0,90328.0,0.06642432]
[1767474358435,0.0001494,90331.0,90330.0,0.05535259]
[1767474358999,0.0001494,90331.0,90328.0,0.06642432]
[1767474359333,4e-07,90331.0,90330.0,0.05535259]
[1767474360067,4e-07,90331.0,90330.0,0.05520359]
[1767474360232,4e-07,90331.0,90330.0,0.05515805]
[1767474361201,4e-07,90331.0,90330.0,0.02415873]
[1767474363848,0.05534318,90346.0,90326.0,0.27255289]
[1767474363849,4e-05,90342.0,90335.0,0.0110699]
[1767474364086,4e-05,90342.0,90339.0,0.01106941]
[1767474364518,4e-05,90342.0,90341.0,0.05534585]
[1767474364704,4e-05,90342.0,90339.0,0.01106941]
[1767474364933,4e-05,90342.0,90339.0,0.06641596]
[1767474365064,0.0721048,90349.0,90346.0,0.01106855]
[1767474365065,0.01676361,90349.0,90346.0,0.01106855]
[1767474365268,0.01476361,90349.0,90348.0,0.05534156]
[1767474365470,8.174e-05,90354.0,90348.0,0.05534156]
[1767474365471,8.174e-05,90354.0,90352.0,0.05533911]
[1767474365671,0.00023499,90358.0,90355.0,0.01106745]
[1767474366244,0.00023499,90358.0,90349.0,0.03310995]
[1767474366245,0.05534016,90351.0,90349.0,0.03310995]
[1767474366433,0.01106745,90355.0,90340.0,0.02216]
[1767474366434,0.01106892,90343.0,90340.0,0.02216]
[1767474366638,0.05534289,90346.0,90333.0,0.05113511]
[1767474366639,0.01106966,90337.0,90333.0,0.05113511]
[1767474366834,0.01106966,90337.0,90334.0,0.02216]
[1767474367012,0.03459352,90337.0,90334.0,0.02216]
[1767474367374,0.03459352,90337.0,90327.0,0.05535434]
[1767474367375,0.06642244,90331.0,90326.0,0.05113511]
[1767474367525,0.01107064,90329.0,90326.0,0.05103511]
[1767474367726,0.01107064,90329.0,90327.0,0.02216]
[1767474368164,0.06642389,90329.0,90326.0,0.05103511]
[1767474368367,0.06642531,90327.0,90322.0,0.01107149]
[1767474368530,0.06642531,90327.0,90323.0,0.02216]
[1767474368735,0.01107088,90327.0,90323.0,0.02216]
[1767474368970,0.01107088,90327.0,90323.0,0.07329511]
[1767474369130,0.01107088,90327.0,90323.0,0.08436648]
[1767474369327,0.01107064,90329.0,90324.0,0.01107125]
[1767474369596,0.01107076,90328.0,90324.0,0.01107125]
[1767474369903,0.01107076,90328.0,90319.0,0.01107186]
[1767474369904,0.01107125,90324.0,90314.0,0.05536187]
[1767474370190,0.01107149,90322.0,90317.0,0.01107211]
[1767474370362,0.01107149,90322.0,90318.0,0.01122139]
[1767474370545,0.01117913,90322.0,90318.0,0.01122139]
[1767474370753,0.00010764,90322.0,90318.0,0.01122139]
[1767474370953,0.00010764,90322.0,90319.0,0.06643119]
[1767474371158,0.03320429,90323.0,90322.0,0.05113511]
[1767474371383,0.01107113,90325.0,90323.0,0.05113511]
[1767474371677,0.01,90323.0,90321.0,0.01107162]
[1767474372207,0.01107113,90325.0,90321.0,0.01107162]
[1767474373265,0.01107113,90325.0,90320.0,0.01107174]
[1767474373266,0.01107125,90324.0,90320.0,0.06220685]
[1767474373844,0.01107137,90323.0,90320.0,0.06220685]
[1767474374018,0.01107137,90323.0,90320.0,0.05113511]
[1767474375614,0.01107125,90324.0,90320.0,0.06220685]
[1767474376430,0.01107113,90325.0,90324.0,0.000999]
[1767474377148,0.01107125,90324.0,90320.0,0.06220685]
[1767474379619,0.01107137,90323.0,90320.0,0.06220685]
[1767474379797,0.01107113,90325.0,90321.0,0.01107162]
[1767474379999,0.01107125,90324.0,90320.0,0.01107174]
[1767474381362,0.01107113,90325.0,90320.0,0.01107174]
[1767474381363,0.01107113,90325.0,90321.0,0.01107162]
[1767474381661,0.01107125,90324.0,90320.0,0.01107174]
[1767474381879,0.01107125,90324.0,90321.0,0.01107162]
[1767474382062,0.01107137,90323.0,90319.0,0.01107186]
[1767474382276,0.01107125,90324.0,90320.0,0.01107174]
[1767474384172,0.01107137,90323.0,90319.0,0.06220697]
[1767474384585,0.01107125,90324.0,90319.0,0.01107186]
[1767474384788,0.01107125,90324.0,90320.0,0.01107174]
[1767474385198,0.01107088,90327.0,90318.0,0.0001494]
[1767474385407,0.05535919,90320.0,90318.0,0.0001494]
[1767474385538,0.01107162,90321.0,90310.0,0.01107297]
[1767474385539,0.01107223,90316.0,90311.0,0.02216]
[1767474385736,0.01107248,90314.0,90311.0,0.00010764]
[1767474386278,0.01107248,90314.0,90311.0,6.4e-07]
[1767474386279,0.05536346,90313.0,90311.0,6.4e-07]
[1767474387024,0.05536346,90313.0,90304.0,0.05113511]
[1767474387025,0.06644018,90307.0,90304.0,0.05113511]
[1767474387169,0.06644018,90307.0,90297.0,0.01107456]
[1767474387170,0.01107358,90305.0,90302.0,0.02216]
[1767474387572,0.01107382,90303.0,90300.0,0.0001494]
[1767474387775,0.05537031,90302.0,90300.0,0.0001494]
[1767474388197,0.06644342,90303.0,90300.0,0.0001494]
[1767474389514,0.06626416,90307.0,90302.0,0.01107395]
[1767474389714,0.03159716,90315.0,90311.0,0.01107284]
[1767474389891,0.02052481,90315.0,90312.0,0.05742265]
[1767474390106,0.06643248,90318.0,90313.0,0.0110726]
[1767474390274,0.08870006,90318.0,90313.0,0.05742253]
[1767474390483,0.03333957,90318.0,90314.0,0.01107248]
[1767474390723,0.03323957,90318.0,90314.0,0.05742241]
[1767474391862,0.01107211,90317.0,90313.0,0.0110726]
[1767474396419,0.01107223,90316.0,90313.0,0.0110726]
[1767474396763,0.01107223,90316.0,90312.0,0.06643586]
[1767474397428,0.01107223,90316.0,90312.0,0.01107272]
[1767474398992,0.01107235,90315.0,90311.0,0.01107284]
[1767474400894,0.01107223,90316.0,90312.0,0.01107272]
[1767474402353,0.01107223,90316.0,90311.0,0.06643667]
[1767474402734,0.01107211,90317.0,90313.0,0.0110726]
[1767474405190,0.01107223,90316.0,90313.0,0.0110726]
[1767474405751,0.31557393,90323.0,90313.0,0.0110726]
[1767474405752,0.0664295,90322.0,90316.0,0.04501474]
[1767474406073,0.01107162,90321.0,90317.0,0.04501474]
[1767474406469,0.01107149,90322.0,90318.0,0.01107199]
[1767474406804,0.0110726,90313.0,90310.0,0.01107297]
[1767474406933,0.0110726,90313.0,90309.0,0.01107309]
[1767474407290,0.01107272,90312.0,90309.0,0.00010758]
[1767474407506,0.01107248,90314.0,90310.0,0.01107297]
[1767474407665,0.01107248,90314.0,90311.0,0.01107284]
[1767474407885,0.01107235,90315.0,90311.0,0.01107284]
[1767474408265,0.01107248,90314.0,90310.0,0.01107297]
[1767474409494,0.0110726,90313.0,90309.0,0.01118067]
[1767474410521,0.01107272,90312.0,90309.0,0.01118067]
[1767474411577,0.0110726,90313.0,90309.0,0.01118067]
[1767474413138,0.01107272,90312.0,90309.0,0.01018167]
[1767474414708,0.01107223,90316.0,90290.0,0.33939333]
[1767474414709,0.01107358,90305.0,90300.0,0.01122359]
[1767474414906,0.01107358,90305.0,90300.0,0.0223094]
[1767474414907,0.0110737,90304.0,90300.0,0.0223094]
[1767474415301,0.0110737,90304.0,90301.0,0.01107407]
[1767474415469,0.01107358,90305.0,90301.0,0.01107407]
[1767474416461,0.01107358,90305.0,90302.0,0.01107395]
[1767474416683,0.01107346,90306.0,90302.0,0.01107395]
[1767474417194,0.01007446,90306.0,90302.0,0.01107395]
[1767474417601,0.01007446,90306.0,90303.0,0.01107382]
[1767474418409,0.01107333,90307.0,90303.0,0.01107382]
[1767474418647,0.06643883,90309.0,90304.0,0.0110737]
[1767474419038,0.06643883,90309.0,90305.0,0.01107358]
[1767474419592,0.01107321,90308.0,90305.0,0.01107358]
[1767474420829,0.06643883,90309.0,90305.0,0.01107358]
[1767474421247,0.01107321,90308.0,90304.0,0.0110737]
[1767474422301,0.01107333,90307.0,90304.0,0.0110737]
[1767474423186,0.01107333,90307.0,90303.0,0.01107382]
[1767474423669,0.000999,90303.0,90302.0,0.01107395]
[1767474423841,0.01107346,90306.0,90302.0,0.01107395]
[1767474425453,0.01107346,90306.0,90302.0,0.01007495]
[1767474426765,0.01007446,90306.0,90302.0,0.01007495]
[1767474431438,0.01107358,90305.0,90299.0,0.06644565]
[1767474431627,0.01107358,90305.0,90302.0,0.01107395]
[1767474432203,0.01007446,90306.0,90302.0,0.01107395]
[1767474432410,0.01107333,90307.0,90303.0,0.01107382]
[1767474432974,0.01107321,90308.0,90304.0,0.0110737]
[1767474433607,0.01107333,90307.0,90304.0,0.0110737]
[1767474435387,0.01107321,90308.0,90304.0,0.05887651]
[1767474435591,0.08859598,90313.0,90308.0,0.01107321]
[1767474435756,0.08868335,90313.0,90308.0,0.01107321]
[1767474436486,0.06643782,90310.0,90306.0,0.01107346]
[1767474436693,0.06643782,90310.0,90305.0,0.01107358]
[1767474436694,0.000999,90308.0,90305.0,0.01107358]
[1767474436855,0.06643782,90310.0,90305.0,0.01107358]
[1767474437059,0.01107321,90308.0,90302.0,0.06644332]
[1767474437577,0.01107333,90307.0,90303.0,0.01107382]
[1767474439045,0.01107346,90306.0,90303.0,0.01107382]
[1767474440007,0.01107333,90307.0,90303.0,0.01107382]
[1767474440405,0.01107321,90308.0,90304.0,0.0110737]
[1767474440611,0.01107309,90309.0,90305.0,0.01107358]
[1767474441739,0.01107321,90308.0,90305.0,0.01107358]
[1767474442221,0.01107321,90308.0,90304.0,0.0110737]
[1767474444567,0.01107333,90307.0,90303.0,0.01107382]
[1767474448388,0.01107346,90306.0,90303.0,0.01107382]
[1767474450540,0.01107333,90307.0,90303.0,0.01107382]
[1767474453542,0.06643985,90308.0,90303.0,0.01107382]
[1767474453986,0.01107333,90307.0,90303.0,0.01107382]
[1767474465141,0.000999,90303.0,90302.0,0.01107395]
[1767474465554,0.01107346,90306.0,90302.0,0.01107395]
[1767474465750,0.01107333,90307.0,90303.0,0.01107382]
[1767474466572,0.01107333,90307.0,90304.0,0.0110737]
[1767474469106,0.01107321,90308.0,90304.0,0.06644216]
[1767474470241,0.01107321,90308.0,90304.0,0.0110737]
[1767474477998,0.06644002,90307.0,90302.0,0.06644318]
[1767474478164,0.01107346,90306.0,90303.0,0.01107382]
[1767474479157,0.01107358,90305.0,90301.0,0.01107407]
[1767474479357,0.01107346,90306.0,90302.0,0.01107395]
[1767474481253,0.06644002,90307.0,90303.0,0.01107382]
[1767474481524,0.01107333,90307.0,90303.0,0.01107382]
[1767474483490,0.06038346,90307.0,90303.0,0.01107382]
[1767474483768,0.00892618,90302.0,90296.0,0.06644811]
[1767474484050,0.01107395,90302.0,90297.0,0.01107456]
[1767474484463,0.01107395,90302.0,90298.0,0.01107444]
[1767474484464,0.01107407,90301.0,90298.0,0.01107444]
[1767474484868,0.01107395,90302.0,90298.0,0.01107444]
[1767474488548,0.01107407,90301.0,90297.0,0.01107456]
[1767474488750,0.000999,90297.0,90295.0,0.08860884]
[1767474489178,0.000999,90297.0,90295.0,0.03323481]
[1767474489419,0.06644517,90300.0,90295.0,0.03323481]
[1767474489964,0.01107419,90300.0,90296.0,0.01107468]
[1767474491187,0.01107419,90300.0,90295.0,0.08860846]
[1767474491188,0.01107431,90299.0,90295.0,0.03323481]
[1767474491388,0.01107407,90301.0,90297.0,0.01107456]
[1767474492564,0.01107407,90301.0,90298.0,0.01107444]
[1767474493007,0.06644415,90302.0,90298.0,0.01107444]
[1767474494928,0.01107407,90301.0,90297.0,0.01107456]
[1767474495054,0.01107407,90301.0,90296.0,0.06644773]
[1767474495055,0.000999,90298.0,90296.0,0.01107468]
[1767474495269,0.000999,90298.0,90295.0,0.02216]
[1767474495469,0.01107419,90300.0,90295.0,0.02216]
[1767474495665,0.01107431,90299.0,90295.0,0.03323481]
[1767474495868,0.05537331,90297.0,90295.0,0.02216]
[1767474496057,0.05537331,90297.0,90295.0,0.001161]
[1767474496256,0.01107444,90298.0,90290.0,0.02216]
[1767474496257,0.05537631,90292.0,90290.0,0.02216]
[1767474496503,0.01107505,90293.0,90283.0,0.01155797]
[1767474496504,0.06645312,90290.0,90283.0,0.01155797]
[1767474496658,0.01107554,90289.0,90285.0,0.01107603]
[1767474496858,0.01107542,90290.0,90286.0,0.01107591]
[1767474497412,0.01107481,90295.0,90290.0,0.01]
[1767474497612,0.01107481,90295.0,90291.0,0.0110753]
[1767474497758,0.06644826,90296.0,90292.0,0.01107517]
[1767474497956,0.01107468,90296.0,90292.0,0.01107517]
[1767474498578,0.01107456,90297.0,90292.0,0.01107517]
[1767474498914,0.01107444,90298.0,90297.0,0.01]
[1767474499158,0.08860532,90300.0,90297.0,0.01]
[1767474499361,0.08860532,90300.0,90295.0,0.01107481]
[1767474500324,0.03323419,90300.0,90296.0,0.01107468]
[1767474501923,0.03323419,90300.0,90297.0,0.01107456]
[1767474504586,0.03323419,90300.0,90296.0,0.01107468]
[1767474505381,0.03323419,90300.0,90297.0,0.01107456]
[1767474505580,0.02216,90300.0,90297.0,0.01107456]
[1767474506259,0.02216,90300.0,90297.0,0.01007556]
[1767474506581,0.03323419,90300.0,90296.0,0.01107468]
[1767474514884,0.01107431,90299.0,90295.0,0.01107481]
[1767474516970,0.01107444,90298.0,90295.0,0.01107481]
[1767474517415,0.01107444,90298.0,90294.0,0.01107493]
[1767474519803,0.01107456,90297.0,90294.0,0.01107493]
[1767474520002,0.01107456,90297.0,90293.0,0.01107505]
[1767474522886,0.01107444,90298.0,90297.0,0.000999]
[1767474523385,0.01107444,90298.0,90295.0,0.01107481]
[1767474523533,0.01107431,90299.0,90295.0,0.01107481]
[1767474534478,0.01107444,90298.0,90293.0,0.06644981]
[1767474534795,0.01107444,90298.0,90294.0,0.01107493]
[1767474536601,0.01107444,90298.0,90295.0,0.01107481]
[1767474539067,0.01107456,90297.0,90294.0,0.01107493]
[1767474539514,0.01107444,90298.0,90294.0,0.01107493]
[1767474539710,0.03323431,90299.0,90295.0,0.01107481]
[1767474540533,0.02216,90299.0,90296.0,0.01107468]
[1767474540750,0.011161,90299.0,90296.0,0.01107468]
[1767474541546,0.02223531,90299.0,90293.0,0.01107505]
[1767474541748,0.02207368,90296.0,90291.0,0.06645146]
[1767474541926,0.02107468,90296.0,90291.0,0.06645146]
[1767474542098,0.02107468,90296.0,90292.0,0.01107517]
[1767474542598,0.01107456,90297.0,90293.0,0.01107505]
[1767474543775,0.01107444,90298.0,90294.0,0.01107493]
[1767474545420,0.01107456,90297.0,90293.0,0.01107505]
[1767474546594,0.01098733,90294.0,90290.0,0.01107542]
[1767474546917,0.01107481,90295.0,90291.0,0.0110753]
[1767474547432,0.01107493,90294.0,90291.0,0.0110753]
[1767474547633,0.01107468,90296.0,90292.0,0.01107517]
[1767474547770,0.01095807,90292.0,90290.0,0.01107542]
[1767474547976,0.0110753,90291.0,90286.0,0.01107591]
[1767474548225,0.01107579,90287.0,90283.0,0.00048169]
[1767474548727,0.01107579,90287.0,90284.0,0.01107615]
[1767474548928,0.01107542,90290.0,90285.0,0.01107603]
[1767474549089,0.01107542,90290.0,90287.0,0.01107579]
[1767474549300,0.06645152,90292.0,90287.0,0.01107579]
[1767474549714,0.01107517,90292.0,90288.0,0.01107566]
[1767474551912,0.01107517,90292.0,90289.0,0.01107554]
[1767474552459,0.01107517,90292.0,90288.0,0.01107566]
[1767474553214,0.01094671,90292.0,90288.0,0.01107566]
[1767474553693,0.0664507,90293.0,90289.0,0.01107554]
[1767474555731,0.01107505,90293.0,90289.0,0.01107554]
[1767474556856,0.06644926,90295.0,90290.0,0.01107542]
[1767474557326,0.01107493,90294.0,90290.0,0.01107542]
[1767474558147,0.000999,90290.0,90289.0,0.01107554]
[1767474558753,0.01107505,90293.0,90289.0,0.01107554]
[1767474559392,0.01107517,90292.0,90289.0,0.01107554]
[1767474559577,0.06040057,90292.0,90288.0,0.01645362]
[1767474559743,0.01107517,90292.0,90286.0,0.01107591]
[1767474560143,0.01107517,90292.0,90288.0,0.01107566]
[1767474560349,0.01107517,90292.0,90288.0,0.06645362]
[1767474562192,0.000999,90288.0,90287.0,0.05751029]
[1767474562343,0.01107542,90290.0,90287.0,0.0464345]
[1767474563069,0.01107542,90290.0,90287.0,0.0454355]
[1767474564235,0.0110753,90291.0,90287.0,0.05651129]
[1767474564707,0.0110753,90291.0,90287.0,0.01007679]
[1767474566885,0.0110753,90291.0,90287.0,0.05651129]
[1767474570734,0.0110753,90291.0,90289.0,0.04809423]
[1767474571745,0.06645154,90292.0,90289.0,0.04809423]
[1767474572626,0.06645154,90292.0,90288.0,0.01107566]
[1767474574248,0.01107517,90292.0,90289.0,0.01107554]
[1767474574548,0.01107481,90295.0,90292.0,0.00103992]
[1767474574967,0.01107481,90295.0,90292.0,0.04856725]
[1767474575177,0.01107493,90294.0,90291.0,0.04756825]
[1767474577534,0.01098731,90294.0,90291.0,0.04756825]
[1767474579395,0.05537084,90301.0,90295.0,0.04756825]
[1767474579555,0.01107395,90302.0,90296.0,0.05855804]
[1767474579756,0.01098632,90302.0,90298.0,0.04756825]
[1767474579964,0.01098632,90302.0,90297.0,0.01107456]
[1767474580161,0.0332337,90304.0,90298.0,0.05510176]
[1767474580506,0.0332337,90304.0,90300.0,0.01107419]
[1767474580777,0.01107382,90303.0,90299.0,0.01102872]
[1767474581906,0.01107382,90303.0,90300.0,0.01107419]
[1767474582178,0.01107382,90303.0,90300.0,0.0110286]
[1767474582389,0.01107382,90303.0,90300.0,0.01098301]
[1767474582595,0.01107382,90303.0,90300.0,0.01093742]
[1767474584188,0.01107382,90303.0,90299.0,0.01102872]
[1767474584356,0.06644299,90303.0,90299.0,0.01102872]
[1767474586568,0.06635536,90303.0,90299.0,0.01102872]
[1767474590704,0.01107395,90302.0,90298.0,0.05510176]
[1767474591048,0.01107395,90302.0,90298.0,0.0661762]
[1767474591793,0.01098619,90303.0,90299.0,0.01107431]
[1767474592801,0.01089856,90303.0,90299.0,0.01107431]
[1767474593007,0.00995907,90299.0,90297.0,0.01107456]
[1767474593650,0.01107407,90301.0,90297.0,0.01107456]
[1767474594919,0.01107419,90300.0,90296.0,0.01107468]
[1767474595079,0.01107419,90300.0,90295.0,0.01644822]
[1767474595847,0.01107419,90300.0,90296.0,0.01107468]
[1767474596047,0.01107419,90300.0,90296.0,0.01102909]
[1767474596270,0.01107431,90299.0,90296.0,0.00930852]
[1767474596484,0.01107431,90299.0,90295.0,0.01644822]
[1767474596700,0.01107431,90299.0,90295.0,0.02752303]
[1767474597816,0.01107431,90299.0,90296.0,0.01107468]
[1767474598867,0.06644487,90301.0,90288.0,0.01107566]
[1767474598868,0.01107481,90295.0,90288.0,0.01107566]
[1767474599078,0.01107481,90295.0,90289.0,0.01107554]
[1767474599079,0.01102279,90293.0,90289.0,0.01107554]
[1767474599705,0.01107493,90294.0,90290.0,0.01107542]
[1767474600507,0.03323419,90300.0,90293.0,0.05537527]
[1767474600716,0.01107456,90297.0,90294.0,0.000999]
[1767474600935,0.01107456,90297.0,90293.0,0.01107505]
[1767474601110,0.01107444,90298.0,90293.0,0.01107505]
[1767474601317,0.01107456,90297.0,90292.0,0.01107517]
[1767474601741,0.01107468,90296.0,90292.0,0.01107517]
[1767474601942,0.01107456,90297.0,90293.0,0.01107505]
[1767474603371,0.01107444,90298.0,90294.0,0.01107493]
[1767474604640,0.01107431,90299.0,90295.0,0.01107481]
[1767474604855,0.08860554,90300.0,90296.0,0.01107468]
[1767474605123,0.01107431,90299.0,90296.0,0.01107468]
[1767474605543,0.01107431,90299.0,90295.0,0.01107481]
[1767474607963,0.01107431,90299.0,90294.0,0.01107493]
[1767474608171,0.01107444,90298.0,90294.0,0.01107493]
[1767474608329,0.01098681,90298.0,90294.0,0.01107493]
[1767474610886,0.01107456,90297.0,90293.0,0.01107505]
[1767474611028,0.01107468,90296.0,90292.0,0.06645091]
[1767474611221,0.01107468,90296.0,90293.0,0.01107505]
[1767474611873,0.01107456,90297.0,90293.0,0.01107505]
[1767474612275,0.01107456,90297.0,90294.0,0.01107493]
[1767474612485,0.01107456,90297.0,90293.0,0.01107505]
[1767474612735,0.01098681,90298.0,90294.0,0.01107493]
[1767474613479,0.01107456,90297.0,90293.0,0.01107505]
[1767474613895,0.06635939,90298.0,90293.0,0.01107505]
[1767474614531,0.01098681,90298.0,90293.0,0.01107505]
[1767474614759,0.01107493,90294.0,90284.0,0.0499851]
[1767474615049,0.0110753,90291.0,90287.0,0.01107579]
[1767474615190,0.05537527,90293.0,90288.0,0.066454]
[1767474615390,0.01107493,90294.0,90290.0,0.01107542]
[1767474616016,0.01107505,90293.0,90290.0,0.01107542]
[1767474616215,0.01107493,90294.0,90290.0,0.01107542]
[1767474616969,0.01107505,90293.0,90289.0,0.01107554]
[1767474617101,0.01107493,90294.0,90289.0,1e-08]
[1767474617451,0.01107493,90294.0,90290.0,0.01107542]
[1767474617648,0.01107493,90294.0,90289.0,0.00583286]
[1767474618253,0.01107493,90294.0,90289.0,0.06121013]
[1767474618424,0.01107493,90294.0,90289.0,0.00583286]
[1767474618773,0.01107493,90294.0,90291.0,0.0110753]
[1767474618939,0.01107481,90295.0,90291.0,0.0110753]
[1767474619549,0.01007581,90295.0,90291.0,0.0110753]
[1767474620077,0.06644747,90297.0,90292.0,0.01107517]
[1767474621020,0.01107468,90296.0,90292.0,0.01107517]
[1767474621363,0.01107481,90295.0,90291.0,0.0110753]
[1767474621566,0.01107468,90296.0,90292.0,0.01107517]
[1767474622513,0.01107481,90295.0,90292.0,0.01107517]
[1767474624415,0.01107468,90296.0,90292.0,0.01107517]
[1767474627253,0.01107481,90295.0,90291.0,0.0610604]
[1767474628226,0.01107468,90296.0,90292.0,0.01107517]
[1767474629932,0.01107481,90295.0,90291.0,0.0110753]
[1767474632038,0.01107481,90295.0,90290.0,0.01107542]
[1767474632346,0.000999,90291.0,90289.0,0.06121014]
[1767474632556,0.01107481,90295.0,90289.0,0.06121014]
[1767474632840,0.01107481,90295.0,90291.0,0.0110753]
[1767474632987,0.01107493,90294.0,90289.0,0.06121014]
[1767474633190,0.01107505,90293.0,90289.0,0.06121014]
[1767474633391,0.01107505,90293.0,90290.0,0.01107542]
[1767474633604,0.01107493,90294.0,90290.0,0.01107542]
[1767474633967,0.01107481,90295.0,90291.0,0.0110753]
[1767474634182,0.01107493,90294.0,90291.0,0.01103149]
[1767474634959,0.01107481,90295.0,90291.0,0.01103149]
[1767474636166,0.01107456,90297.0,90292.0,0.0562483]
[1767474636346,0.01107456,90297.0,90295.0,0.01]
[1767474636547,0.01107456,90297.0,90292.0,0.11162377]
[1767474637088,0.01107468,90296.0,90292.0,0.0562483]
[1767474638343,0.0553726,90298.0,90296.0,0.04517313]
[1767474638503,0.0553726,90298.0,90296.0,0.04417413]
[1767474638919,0.01107456,90297.0,90296.0,0.03421506]
[1767474639123,0.01107456,90297.0,90292.0,0.01107517]
[1767474639124,0.01107468,90296.0,90292.0,0.01107517]
[1767474639940,0.01107468,90296.0,90292.0,0.01103136]
[1767474640892,0.01107481,90295.0,90291.0,0.01103149]
[1767474641463,0.01107493,90294.0,90291.0,0.01103149]
[1767474641873,0.01107493,90294.0,90290.0,0.01107542]
[1767474642279,0.01107505,90293.0,90289.0,0.00583286]
[1767474643424,0.01107505,90293.0,90290.0,0.04517313]
[1767474643785,0.06645039,90293.0,90290.0,0.04517313]
[1767474646507,0.06645039,90293.0,90288.0,0.01107566]
[1767474646807,0.06645039,90293.0,90288.0,0.05624879]
[1767474647701,0.01107505,90293.0,90289.0,0.05624867]
[1767474648264,0.01107493,90294.0,90290.0,0.05624855]
[1767474648487,0.01107493,90294.0,90293.0,0.000999]
[1767474648760,0.01107493,90294.0,90290.0,0.05624855]
[1767474650925,0.01107493,90294.0,90290.0,0.01107542]
[1767474651139,0.01107517,90292.0,90289.0,0.01107554]
[1767474651355,0.01107517,90292.0,90288.0,0.01107566]
[1767474653152,0.0110753,90291.0,90286.0,0.05624904]
[1767474653355,0.0110753,90291.0,90287.0,0.01107579]
[1767474654057,0.01107542,90290.0,90286.0,0.05624904]
[1767474654258,0.0110753,90291.0,90287.0,0.01107579]
[1767474654617,0.01107542,90290.0,90287.0,0.01107579]
[1767474654875,0.01107542,90290.0,90285.0,0.02785289]
[1767474655364,0.0110753,90291.0,90287.0,0.01107579]
[1767474656376,0.01107517,90292.0,90288.0,0.01107566]
[1767474657329,0.01107517,90292.0,90288.0,0.05624879]
[1767474658042,0.01107505,90293.0,90289.0,0.01107554]
[1767474658366,0.01107505,90293.0,90289.0,0.05620308]
[1767474661083,0.01107481,90295.0,90293.0,0.04668615]
[1767474661265,0.01107481,90295.0,90293.0,0.04568715]
[1767474661469,0.06644923,90295.0,90293.0,0.04568715]
[1767474663001,0.01107481,90295.0,90293.0,0.04568715]
[1767474665651,0.06644922,90295.0,90293.0,0.04568715]
[1767474666816,0.01107481,90295.0,90293.0,0.04568715]
[1767474672211,0.06644706,90298.0,90295.0,0.04568715]
[1767474672433,0.05537212,90299.0,90295.0,0.05568715]
[1767474672857,0.01107444,90298.0,90295.0,0.06676196]
[1767474673070,0.01107419,90300.0,90295.0,0.06676196]
[1767474673293,0.06644483,90301.0,90295.0,0.06676196]
[1767474673294,0.01107407,90301.0,90298.0,0.01107444]
[1767474673504,0.02216,90305.0,90300.0,0.010421]
[1767474673926,0.06644131,90306.0,90299.0,0.0553712]
[1767474674124,0.05536847,90305.0,90299.0,0.0553712]
[1767474674551,0.01107395,90302.0,90298.0,0.01107444]
[1767474674751,0.01107407,90301.0,90296.0,0.06644773]
[1767474674930,0.01107407,90301.0,90297.0,0.01107456]
[1767474677728,0.01107395,90302.0,90298.0,0.01107444]
[1767474679460,0.01107407,90301.0,90297.0,0.01107456]
[1767474679620,0.000999,90298.0,90297.0,0.01107456]
[1767474680250,0.01107419,90300.0,90297.0,0.01107456]
[1767474681556,0.01107407,90301.0,90297.0,0.01107456]
[1767474683127,0.06644412,90302.0,90297.0,0.01107456]
[1767474683128,0.01107395,90302.0,90298.0,0.01107444]
[1767474684490,0.05537527,90293.0,90292.0,0.02216]
[1767474684920,0.05537659,90291.0,90288.0,0.04568715]
[1767474685118,0.05528896,90291.0,90288.0,0.04568715]
[1767474685257,0.05537527,90293.0,90288.0,0.04568715]
[1767474685845,0.0110753,90291.0,90288.0,0.05676281]
[1767474686125,0.06645158,90292.0,90288.0,0.04568715]
[1767474686844,0.0110753,90291.0,90288.0,0.04568715]
[1767474687271,0.0110753,90291.0,90287.0,0.03323579]
[1767474687483,0.06645153,90292.0,90287.0,0.02216]
[1767474687725,0.01107542,90290.0,90287.0,0.021161]
[1767474688555,0.01107517,90292.0,90287.0,0.03223679]
[1767474688765,0.0110753,90291.0,90287.0,0.03223679]
[1767474689827,0.01107542,90290.0,90287.0,0.021161]
[1767474691318,0.06645298,90290.0,90287.0,0.021161]
[1767474691530,0.01107554,90289.0,90285.0,0.01107603]
[1767474691941,0.0110753,90291.0,90289.0,0.010999]
[1767474692149,0.01107542,90290.0,90289.0,0.010999]
[1767474692349,0.01107542,90290.0,90289.0,0.000999]
[1767474692567,0.01107542,90290.0,90286.0,0.01107591]
[1767474692771,0.01098779,90290.0,90286.0,0.01107591]
[1767474693935,0.01107517,90292.0,90288.0,0.01107566]
[1767474694137,0.01107517,90292.0,90289.0,0.01107554]
[1767474694740,0.01107517,90292.0,90288.0,0.01107566]
[1767474695437,0.01107505,90293.0,90292.0,0.000999]
[1767474696191,0.01107505,90293.0,90289.0,0.01107554]
[1767474696417,0.01107505,90293.0,90288.0,0.01107566]
[1767474697686,0.0553741,90295.0,90288.0,0.01107566]
[1767474697868,0.01107493,90294.0,90290.0,0.01107542]
[1767474698726,0.01107505,90293.0,90289.0,0.01107554]
[1767474700763,0.01107493,90294.0,90290.0,0.01107542]
[1767474701319,0.01107505,90293.0,90289.0,0.01107554]
[1767474702311,0.01107493,90294.0,90290.0,0.01107542]
[1767474703674,0.01107542,90290.0,90285.0,0.01107603]
[1767474703877,0.01007654,90289.0,90285.0,0.01107603]
[1767474704077,0.01107566,90288.0,90284.0,0.01107615]
[1767474704234,0.01107579,90287.0,90283.0,0.05586273]
[1767474704432,0.06636525,90290.0,90286.0,0.01107591]
[1767474704637,0.0110753,90291.0,90287.0,0.01107579]
[1767474704861,0.01107542,90290.0,90286.0,0.01107591]
[1767474705018,0.0110753,90291.0,90287.0,0.01107579]
[1767474705822,0.01107517,90292.0,90288.0,0.01107566]
[1767474706180,0.0110753,90291.0,90287.0,0.01107579]
[1767474706389,0.06645215,90291.0,90286.0,0.01107591]
[1767474707146,0.0110753,90291.0,90286.0,0.01107591]
[1767474707335,0.01107542,90290.0,90286.0,0.01107591]
[1767474707541,0.0110753,90291.0,90287.0,0.01107579]
[1767474707674,0.01107542,90290.0,90286.0,0.01107591]
[1767474707892,0.000999,90286.0,90283.0,0.00048169]
[1767474708457,0.01107591,90286.0,90283.0,0.00048169]
[1767474708912,0.01107579,90287.0,90283.0,0.01155797]
[1767474709284,0.01107591,90286.0,90283.0,0.00048169]
[1767474709457,0.01107566,90288.0,90283.0,0.01155797]
[1767474709664,0.01107579,90287.0,90283.0,0.01155797]
[1767474709805,0.01107554,90289.0,90283.0,0.00048169]
[1767474710007,0.01107566,90288.0,90283.0,0.01155797]
[1767474710290,0.01107591,90286.0,90283.0,0.01155797]